bitfinex/quotes_SOLUSD_20241116
["timestamp","ask_amount","ask_price","bid_price","bid_amount"]
[1731801026557,14.01170062,216.06,216.01,4.6293]
[1731801027549,14.01170062,216.07,216.01,4.6293]
[1731801028669,14.01170062,216.08,216.0,34.01170062]
[1731801028966,14.01170062,216.05,215.98,20.0]
[1731801029258,14.01170062,216.05,215.98,14.01170062]
[1731801029458,14.01170062,216.06,215.98,14.01170062]
[1731801029656,0.25098,216.06,215.99,14.01170062]
[1731801029857,14.01170062,216.07,216.01,14.01170062]
[1731801030062,14.01170062,216.09,216.01,14.01170062]
[1731801030369,18.63910062,216.11,216.03,14.01170062]
[1731801030539,0.25098,216.1,216.03,14.01170062]
[1731801031358,14.01170062,216.09,216.02,20.0]
[1731801031566,18.63910062,216.11,216.03,14.01170062]
[1731801031768,0.25098,216.1,216.03,14.01170062]
[1731801032286,0.25098,216.1,216.04,4.6287]
[1731801032842,14.01170062,216.09,216.04,4.6287]
[1731801033541,14.01170062,216.07,216.02,20.0]
[1731801033759,14.01170062,216.07,216.01,20.0]
[1731801033953,14.01170062,216.07,216.0,20.0]
[1731801034154,14.01170062,216.08,216.0,34.01170062]
[1731801034368,14.01170062,216.1,216.03,14.01170062]
[1731801035270,14.01170062,216.1,216.04,4.6287]
[1731801035641,14.13719062,216.12,216.04,4.6287]
[1731801036273,0.12549,216.11,216.04,4.6287]
[1731801037256,0.12549,216.11,216.05,14.01170062]
[1731801037870,0.12549,216.11,216.04,4.6287]
[1731801039170,14.01170062,216.1,216.03,14.01170062]
[1731801039371,14.01170062,216.08,216.0,20.0]
[1731801039870,14.01170062,216.08,216.01,14.01170062]
[1731801040671,14.01170062,216.08,216.02,4.6292]
[1731801043071,14.01170062,216.09,216.02,18.64090062]
[1731801045390,14.01170062,216.12,216.04,14.01170062]
[1731801045558,0.25098,216.11,216.04,14.01170062]
[1731801046885,4.87828,216.11,216.04,18.64030062]
[1731801048380,4.87828,216.11,216.0,14.01170062]
[1731801048381,14.01170062,216.08,216.0,14.01170062]
[1731801048556,0.25098,216.07,216.0,14.01170062]
[1731801048875,14.01170062,216.06,215.98,14.01170062]
[1731801049254,14.01170062,216.06,215.99,4.6298]
[1731801049457,0.25098,216.07,216.0,14.01170062]
[1731801050458,4.87918,216.07,216.0,18.64110062]
[1731801051110,23.876884,216.16,216.0,18.64110062]
[1731801051111,14.01170062,216.12,216.04,14.01170062]
[1731801051273,0.25098,216.11,216.04,14.01170062]
[1731801052500,4.87828,216.11,216.04,18.64020062]
[1731801056288,14.01170062,216.14,216.06,14.01170062]
[1731801056485,0.25098,216.14,216.07,14.01170062]
[1731801057486,14.01170062,216.15,216.09,14.01170062]
[1731801057907,14.01170062,216.15,216.1,4.6274]
[1731801058109,0.25098,216.15,216.1,4.6274]
[1731801058279,30.65520062,216.18,216.11,14.01170062]
[1731801058481,21.2692,216.18,216.11,14.01170062]
[1731801058704,35.28090062,216.18,216.11,14.01170062]
[1731801059408,14.01170062,216.16,216.07,14.01170062]
[1731801060015,0.25098,216.15,216.08,4.6279]
[1731801060710,14.01170062,216.12,216.05,14.01170062]
[1731801061288,14.01170062,216.13,216.05,14.01170062]
[1731801064691,14.01170062,216.13,216.06,20.0]
[1731801065032,14.01170062,216.13,216.06,24.6281]
[1731801065320,4.6263,216.16,216.04,21.159]
[1731801065321,14.01170062,216.09,216.04,21.159]
[1731801066591,18.63900062,216.11,216.04,21.159]
[1731801066918,14.01170062,216.11,216.04,21.159]
[1731801068317,18.63900062,216.11,216.04,21.159]
[1731801068495,14.01170062,216.09,216.03,10.8768]
[1731801068908,14.01170062,216.09,216.04,4.6287]
[1731801070812,8.97000278,216.09,216.04,4.6287]
[1731801072917,8.97000278,216.08,216.04,4.6287]
[1731801073112,8.97000278,216.05,215.99,16.3438]
[1731801073316,8.97000278,216.04,216.0,4.6296]
[1731801073811,8.97000278,216.05,216.0,4.6296]
[1731801075297,8.97000278,216.04,216.0,4.6296]
[1731801075624,8.97000278,216.05,216.0,4.6296]
[1731801077244,8.97000278,216.06,216.0,4.6296]
[1731801078222,13.59830278,216.06,216.0,4.6296]
[1731801079518,8.97000278,216.05,216.0,4.6296]
[1731801079717,15.9112,216.1,215.98,10.9978]
[1731801080034,8.97000278,216.01,215.95,4.6307]
[1731801080399,24.027864,216.09,215.93,22.85591228]
[1731801080400,8.97000278,215.98,215.93,4.6309]
[1731801080598,8.97000278,215.97,215.89,25.31380278]
[1731801080825,8.97000278,215.95,215.89,16.3438]
[1731801081228,8.97000278,215.95,215.88,15.33780278]
[1731801081525,8.97000278,215.95,215.89,4.6319]
[1731801081823,4.6303,215.97,215.9,8.97000278]
[1731801081824,8.97000278,215.97,215.9,8.97000278]
[1731801082398,8.97000278,215.97,215.89,33.60190278]
[1731801082604,8.97000278,215.96,215.89,24.6319]
[1731801083904,8.97000278,215.95,215.89,4.6319]
[1731801084229,8.97000278,215.95,215.88,6.3678]
[1731801084405,8.97000278,215.95,215.89,4.6319]
[1731801085507,13.60070278,215.95,215.89,4.6319]
[1731801087338,4.6298,215.99,215.89,4.6319]
[1731801087640,8.97000278,215.96,215.89,4.6319]
[1731801089140,13.60040278,215.96,215.89,4.6319]
[1731801089634,0.12549,215.95,215.89,4.6319]
[1731801092223,15.9112,216.01,215.9,8.97000278]
[1731801092423,9.09549278,215.99,215.9,8.97000278]
[1731801094229,4.63,215.98,215.91,4.6315]
[1731801106058,4.63,215.98,215.88,6.3678]
[1731801106228,4.63,215.98,215.91,8.97000278]
[1731801108051,8.97000278,215.97,215.9,4.6317]
[1731801108853,8.97000278,215.95,215.89,20.0]
[1731801109049,8.97000278,215.95,215.89,24.6319]
[1731801109635,0.12549,215.96,215.89,33.60190278]
[1731801110254,4.75609,215.96,215.89,33.60190278]
[1731801119050,0.25098,215.94,215.87,4.6322]
[1731801119937,4.6296,216.0,215.9,8.97000278]
[1731801120138,4.6296,216.0,215.92,8.97000278]
[1731801120360,13.59960278,216.0,215.92,8.97000278]
[1731801120959,13.60050278,215.96,215.88,8.97000278]
[1731801122343,4.6305,215.96,215.9,8.97000278]
[1731801122959,15.9112,216.01,215.94,8.97000278]
[1731801123163,20.5406,216.01,215.96,8.97000278]
[1731801123458,20.5406,216.01,215.94,8.97000278]
[1731801124254,20.5406,216.01,215.94,13.60080278]
[1731801125146,4.6291,216.03,215.96,8.97000278]
[1731801125464,0.25098,216.02,215.96,8.97000278]
[1731801125961,4.6286,216.05,215.96,8.97000278]
[1731801126165,4.6286,216.05,215.99,8.97000278]
[1731801126466,4.6286,216.05,215.99,13.59970278]
[1731801127035,4.6286,216.05,215.93,20.0]
[1731801127365,4.6286,216.05,215.98,8.97000278]
[1731801128862,4.6286,216.05,215.98,13.59990278]
[1731801129246,9.22098278,216.04,215.96,8.97000278]
[1731801129756,0.25098,216.01,215.94,13.60080278]
[1731801130464,0.25098,216.01,215.94,8.97000278]
[1731801130465,4.6296,216.0,215.94,8.97000278]
[1731801130964,4.6296,216.0,215.94,13.60080278]
[1731801131765,0.25098,215.99,215.92,8.97000278]
[1731801131951,0.25098,215.99,215.93,20.0]
[1731801132276,0.25098,215.99,215.92,8.97000278]
[1731801132440,4.63,215.98,215.92,8.97000278]
[1731801132865,4.63,215.98,215.92,13.60130278]
[1731801133169,0.25098,216.01,215.94,8.97000278]
[1731801133469,4.88018,216.02,215.94,8.97000278]
[1731801133641,4.88018,216.02,215.96,8.97000278]
[1731801135775,13.59850278,216.05,215.96,13.60030278]
[1731801136744,13.59850278,216.05,215.96,8.97000278]
[1731801136941,0.25098,216.04,215.96,8.97000278]
[1731801137872,4.87978,216.04,215.97,4.6302]
[1731801138047,8.97000278,216.03,215.95,8.97000278]
[1731801138363,0.25098,216.02,215.95,8.97000278]
[1731801139062,4.6294,216.01,215.95,8.97000278]
[1731801139949,4.6294,216.01,215.95,13.60060278]
[1731801141184,15.9253,216.06,215.97,8.97000278]
[1731801141355,15.9253,216.06,215.99,8.97000278]
[1731801142356,4.6287,216.05,215.99,8.97000278]
[1731801142558,0.25098,216.04,215.99,8.97000278]
[1731801143974,4.6287,216.05,215.99,13.59970278]
[1731801145575,15.9253,216.06,215.99,13.59970278]
[1731801145762,15.9253,216.06,216.01,8.97000278]
[1731801147566,15.9253,216.06,216.02,4.6292]
[1731801147773,8.97000278,216.1,216.02,4.6292]
[1731801148074,13.59750278,216.1,216.03,8.97000278]
[1731801149253,13.59750278,216.1,216.03,13.59880278]
[1731801150073,4.6275,216.1,216.03,13.59880278]
[1731801151775,15.8416,216.11,216.05,8.97000278]
[1731801152779,20.4689,216.11,216.01,43.776884]
[1731801152966,20.4689,216.11,216.05,8.97000278]
[1731801153880,4.6266,216.14,216.07,8.97000278]
[1731801154176,26.945,216.16,216.09,8.97000278]
[1731801154761,26.945,216.16,216.09,13.59760278]
[1731801155661,12.096109,216.21,216.15,8.97000278]
[1731801155662,16.374509,216.21,216.15,8.97000278]
[1731801155879,16.374509,216.21,216.16,8.97000278]
[1731801156969,20.999609,216.21,216.16,8.97000278]
[1731801157177,16.374509,216.21,216.15,13.59630278]
[1731801157550,16.374509,216.21,216.16,8.97000278]
[1731801157856,20.999609,216.21,216.16,8.97000278]
[1731801159576,29.96961178,216.21,216.09,4.6277]
[1731801159776,29.96961178,216.21,216.12,8.97000278]
[1731801159980,8.97000278,216.17,216.09,4.6277]
[1731801160277,8.97000278,216.17,216.09,13.59770278]
[1731801161068,8.97000278,216.15,216.08,8.97000278]
[1731801162173,8.97000278,216.15,216.09,4.6277]
[1731801163464,8.97000278,216.15,216.05,23.776884]
[1731801163786,8.97000278,216.15,216.08,20.0]
[1731801164580,8.97000278,216.13,216.04,4.6287]
[1731801164879,8.97000278,216.1,215.99,4.6298]
[1731801165185,8.97000278,216.08,215.99,4.6298]
[1731801165485,0.25098,216.07,215.99,4.6298]
[1731801165663,0.25098,216.07,215.99,13.59980278]
[1731801165983,8.97000278,216.08,215.99,13.59980278]
[1731801166185,8.97000278,216.08,216.01,8.97000278]
[1731801166563,13.59800278,216.08,216.0,4.6294]
[1731801167086,13.59800278,216.08,216.0,24.6294]
[1731801168280,0.25098,216.09,216.01,8.97000278]
[1731801169170,4.87868,216.09,216.02,4.6292]
[1731801170956,15.58320278,216.1,216.02,4.6292]
[1731801171157,6.6132,216.1,216.03,8.97000278]
[1731801172296,6.6132,216.1,216.04,4.6287]
[1731801172968,20.21070278,216.1,216.04,4.6287]
[1731801178471,0.25098,216.09,216.02,20.0]
[1731801178795,8.97000278,216.08,216.01,8.97000278]
[1731801179789,13.59790278,216.08,216.02,4.6292]
[1731801182285,0.25098,216.09,216.02,4.6292]
[1731801182694,6.6132,216.1,216.03,8.97000278]
[1731801183375,15.0621,216.13,216.07,8.97000278]
[1731801183578,15.0621,216.13,216.08,8.97000278]
[1731801183774,19.6889,216.13,216.08,8.97000278]
[1731801184380,19.6889,216.13,216.07,4.628]
[1731801185593,19.6889,216.13,216.06,8.97000278]
[1731801186404,8.97000278,216.11,216.01,4.6294]
[1731801186586,8.97000278,216.09,216.01,4.6294]
[1731801186787,8.97000278,216.09,216.01,13.59940278]
[1731801187511,4.6283,216.06,215.99,4.6298]
[1731801190606,13.59810278,216.07,215.99,4.6298]
[1731801191999,8.97000278,216.11,216.04,8.97000278]
[1731801192199,13.59740278,216.11,216.04,8.97000278]
[1731801192898,8.97000278,216.11,216.04,8.97000278]
[1731801193305,4.6271,216.12,216.04,8.97000278]
[1731801193603,0.25098,216.11,216.04,8.97000278]
[1731801194283,0.25098,216.11,216.05,4.6285]
[1731801195425,4.87828,216.11,216.04,8.97000278]
[1731801195713,8.97000278,216.08,216.0,8.97000278]
[1731801196688,8.97000278,216.08,216.01,4.6294]
[1731801196892,0.25098,216.09,216.02,8.97000278]
[1731801197207,0.25098,216.11,216.04,8.97000278]
[1731801198406,4.6274,216.1,216.04,8.97000278]
[1731801198603,13.59740278,216.1,216.03,4.6288]
[1731801199208,4.6274,216.1,216.04,8.97000278]
[1731801200913,4.6274,216.1,216.04,13.59870278]
[1731801201107,13.59710278,216.12,216.04,13.59870278]
[1731801202517,8.97000278,216.1,215.97,23.776884]
[1731801202815,8.97000278,216.08,216.01,8.97000278]
[1731801203212,0.25098,216.07,215.99,8.97000278]
[1731801203518,0.25098,216.07,215.96,4.6304]
[1731801203519,16.1916,216.05,215.97,8.97000278]
[1731801204212,20.8202,216.05,215.98,4.63]
[1731801205426,9.09549278,216.04,215.91,24.6315]
[1731801205727,9.09549278,216.04,215.96,8.97000278]
[1731801206506,4.6289,216.03,215.96,13.60030278]
[1731801207404,16.1916,216.05,215.98,8.97000278]
[1731801207603,20.8201,216.05,215.98,8.97000278]
[1731801207812,16.1916,216.05,215.98,8.97000278]
[1731801208708,16.1916,216.05,215.99,4.6298]
[1731801209105,20.8201,216.05,215.99,4.6298]
[1731801209723,9.22098278,216.04,215.91,26.57871991]
[1731801209925,8.97000278,216.02,215.93,8.97000278]
[1731801210514,4.6294,216.01,215.94,4.6309]
[1731801215327,0.25098,216.04,215.97,8.97000278]
[1731801215514,0.25098,216.04,215.99,8.97000278]
[1731801215515,4.6289,216.04,215.99,8.97000278]
[1731801216030,16.1916,216.05,215.99,8.97000278]
[1731801216216,20.8201,216.05,215.99,8.97000278]
[1731801216824,20.8201,216.05,215.98,8.97000278]
[1731801217452,20.8201,216.05,215.98,13.59990278]
[1731801218846,8.97000278,216.02,215.95,8.97000278]
[1731801219137,8.97000278,216.02,215.93,20.0]
[1731801219434,8.97000278,216.02,215.93,28.97000278]
[1731801219835,4.6294,216.01,215.94,4.6309]
[1731801220739,4.6294,216.01,215.95,8.97000278]
[1731801220919,4.6292,216.02,215.95,18.65449751]
[1731801221231,4.6292,216.02,215.95,14.02389751]
[1731801222223,14.02389751,216.01,215.93,14.02389751]
[1731801222626,0.25098,216.0,215.93,14.02389751]
[1731801222826,14.02389751,215.99,215.91,18.65539751]
[1731801223226,0.25098,216.0,215.93,14.02389751]
[1731801224228,4.6298,215.99,215.93,14.02389751]
[1731801228833,4.6298,215.99,215.88,18.37605262]
[1731801228834,30.20709751,215.97,215.89,14.02389751]
[1731801229351,14.02389751,215.95,215.88,11.87551126]
[1731801229847,4.6309,215.94,215.88,16.50761126]
[1731801233943,14.02389751,215.91,215.79,6.25569618]
[1731801234252,14.02389751,215.91,215.82,14.02389751]
[1731801235031,18.65559751,215.91,215.83,4.6332]
[1731801235239,18.65559751,215.91,215.83,24.6332]
[1731801237532,14.02389751,215.95,215.86,14.02389751]
[1731801237734,14.27487751,215.95,215.86,14.02389751]
[1731801238446,14.27487751,215.95,215.88,14.02389751]
[1731801238644,4.6309,215.94,215.88,18.65599751]
[1731801242752,13.61312559,215.94,215.87,8.98222559]
[1731801243139,13.61312559,215.94,215.81,23.776884]
[1731801243333,13.61312559,215.94,215.87,8.98222559]
[1731801244239,13.61312559,215.94,215.87,13.61452559]
[1731801245853,4.6309,215.94,215.87,13.61452559]
[1731801246052,16.1832,215.97,215.92,8.98222559]
[1731801246253,16.1832,215.97,215.94,8.98222559]
[1731801246836,4.6294,216.01,215.94,8.98222559]
[1731801247743,4.6294,216.01,215.95,4.6307]
[1731801254252,4.6294,216.01,215.96,8.98222559]
[1731801254565,15.1851,216.02,215.96,8.98222559]
[1731801254951,19.8143,216.02,215.96,8.98222559]
[1731801255356,15.1851,216.02,215.96,8.98222559]
[1731801255670,19.8143,216.02,215.95,8.98222559]
[1731801256662,19.8143,216.02,215.95,13.61282559]
[1731801262952,28.79652559,216.02,215.95,8.98222559]
[1731801263167,8.98222559,216.0,215.89,4.6319]
[1731801263357,8.98222559,215.98,215.91,8.98222559]
[1731801264276,4.6302,215.97,215.91,8.98222559]
[1731801265856,4.6302,215.97,215.91,13.61372559]
[1731801268862,4.6302,215.97,215.91,8.98222559]
[1731801269479,15.1036,215.95,215.87,20.0]
[1731801269776,8.98222559,215.94,215.87,28.98222559]
[1731801269982,8.98222559,215.94,215.84,4.633]
[1731801270277,8.98222559,215.94,215.85,8.98222559]
[1731801271269,4.6311,215.93,215.85,8.98222559]
[1731801272360,4.6311,215.93,215.85,13.61482559]
[1731801275985,19.7343,215.95,215.89,8.98222559]
[1731801276880,28.71652559,215.95,215.88,8.98222559]
[1731801277585,28.71652559,215.95,215.88,13.61422559]
[1731801279567,28.71652559,215.95,215.88,8.98222559]
[1731801279886,8.98222559,215.93,215.86,8.98222559]
[1731801280090,8.98222559,215.93,215.84,8.98222559]
[1731801280973,4.6313,215.92,215.85,4.6328]
[1731801282875,4.6313,215.92,215.86,8.98222559]
[1731801285574,4.6313,215.92,215.86,13.61472559]
[1731801285874,4.6313,215.92,215.86,4.6325]
[1731801286084,4.6313,215.92,215.87,8.98222559]
[1731801286473,4.6309,215.94,215.87,8.98222559]
[1731801294976,0.25098,215.93,215.85,8.98222559]
[1731801295174,9.23320559,215.93,215.85,8.98222559]
[1731801296480,4.6313,215.92,215.85,8.98222559]
[1731801300303,4.6313,215.92,215.85,13.61492559]
[1731801300602,4.6313,215.92,215.87,8.98222559]
[1731801300806,4.631,215.94,215.87,8.98222559]
[1731801301185,13.61322559,215.94,215.85,8.98222559]
[1731801301685,8.98222559,215.92,215.85,8.98222559]
[1731801302200,4.6315,215.91,215.83,8.98222559]
[1731801302405,4.6315,215.91,215.85,8.98222559]
[1731801302984,4.6315,215.91,215.82,4.6334]
[1731801302985,4.6315,215.91,215.83,8.98222559]
[1731801303501,4.6315,215.91,215.83,13.61542559]
[1731801304283,8.98222559,215.94,215.85,8.98222559]
[1731801304506,4.6313,215.93,215.85,8.98222559]
[1731801304702,4.6313,215.93,215.87,8.98222559]
[1731801305009,15.1036,215.95,215.87,8.98222559]
[1731801305216,19.7344,215.95,215.89,8.98222559]
[1731801305901,15.1036,215.95,215.91,8.98222559]
[1731801306512,15.1036,215.95,215.93,8.98222559]
[1731801306810,6.582,216.01,215.89,4.6319]
[1731801306811,19.7707,216.0,215.94,8.98222559]
[1731801307106,15.1409,216.0,215.89,4.7319]
[1731801307314,15.1409,216.0,215.95,8.98222559]
[1731801308007,15.1409,216.0,215.95,13.61282559]
[1731801309405,15.1409,216.0,215.88,42.44989345]
[1731801309688,8.98222559,215.98,215.91,8.98222559]
[1731801310788,19.7706,216.0,215.91,8.98222559]
[1731801310789,28.75282559,216.0,215.91,8.98222559]
[1731801311307,28.75282559,216.0,215.91,13.61362559]
[1731801311999,19.7706,216.0,215.94,8.98222559]
[1731801312415,19.7706,216.0,215.93,8.98222559]
[1731801313110,8.98222559,215.94,215.87,8.98222559]
[1731801313414,8.98222559,215.96,215.87,8.98222559]
[1731801314101,4.6307,215.95,215.87,8.98222559]
[1731801315108,6.6391,215.98,215.91,8.98222559]
[1731801315109,15.62132559,215.98,215.91,8.98222559]
[1731801315312,6.6391,215.98,215.91,8.98222559]
[1731801315605,11.2691,215.98,215.91,8.98222559]
[1731801316301,11.2691,215.98,215.92,4.6313]
[1731801317390,8.98222559,215.97,215.86,24.6326]
[1731801317599,8.98222559,215.96,215.88,28.98222559]
[1731801317899,8.98222559,215.95,215.88,8.98222559]
[1731801318101,8.98222559,215.96,215.88,8.98222559]
[1731801318296,20.25132559,215.98,215.9,8.98222559]
[1731801318503,20.25132559,215.98,215.91,4.6315]
[1731801318916,8.98222559,215.97,215.89,13.61402559]
[1731801320097,4.6304,215.96,215.89,8.98222559]
[1731801320415,4.6304,215.96,215.83,13.61532559]
[1731801320416,8.98222559,215.91,215.83,13.61532559]
[1731801321704,4.6317,215.9,215.83,13.61532559]
[1731801322396,4.6317,215.9,215.83,8.98222559]
[1731801323297,24.32522559,215.93,215.85,8.98222559]
[1731801323502,15.343,215.93,215.88,8.98222559]
[1731801323698,15.343,215.93,215.89,8.98222559]
[1731801324215,15.343,215.93,215.88,13.61422559]
[1731801324609,15.343,215.93,215.88,4.632]
[1731801324812,6.6391,215.98,215.92,8.98222559]
[1731801324999,15.6534,215.99,215.95,8.98222559]
[1731801325811,15.6534,215.99,215.94,8.98222559]
[1731801326727,15.6534,215.99,215.95,4.6307]
[1731801328416,15.6534,215.99,215.95,8.98222559]
[1731801330107,15.6534,215.99,215.95,13.61282559]
[1731801331926,15.6534,215.99,215.95,8.98222559]
[1731801333810,15.6534,215.99,215.95,13.61282559]
[1731801336430,4.6294,216.01,215.95,13.61282559]
[1731801336636,13.61112559,216.03,215.95,13.61282559]
[1731801338509,13.61112559,216.03,215.96,8.98222559]
[1731801338726,13.61112559,216.03,215.96,13.61252559]
[1731801340130,4.6289,216.03,215.9,24.6317]
[1731801340329,8.98222559,215.98,215.9,13.61392559]
[1731801340733,8.98222559,215.98,215.91,8.98222559]
[1731801340937,8.98222559,215.98,215.9,4.6317]
[1731801340938,8.98222559,215.98,215.9,13.61392559]
[1731801341231,4.6289,216.03,215.83,6.1521]
[1731801341232,8.98222559,215.95,215.83,6.0521]
[1731801341425,8.98222559,215.91,215.84,4.633]
[1731801342431,8.98222559,215.93,215.86,8.98222559]
[1731801342629,13.61322559,215.94,215.87,8.98222559]
[1731801342833,8.98222559,215.93,215.84,4.633]
[1731801343024,8.98222559,215.93,215.86,8.98222559]
[1731801344612,13.61342559,215.93,215.86,8.98222559]
[1731801346342,13.61342559,215.93,215.86,4.6326]
[1731801346528,8.98222559,215.92,215.86,4.6326]
[1731801346922,13.61342559,215.93,215.86,4.6326]
[1731801350546,8.98222559,215.91,215.83,20.0]
[1731801351527,13.61382559,215.91,215.84,8.98222559]
[1731801353656,24.77462559,215.93,215.84,8.98222559]
[1731801353840,4.6313,215.92,215.86,8.98222559]
[1731801354153,6.309,215.96,215.88,8.98222559]
[1731801354336,19.92172559,215.96,215.88,8.98222559]
[1731801355730,8.98222559,215.94,215.86,8.98222559]
[1731801356123,8.98222559,215.94,215.83,24.6332]
[1731801356124,8.98222559,215.92,215.83,24.6332]
[1731801356322,8.98222559,215.92,215.84,8.98222559]
[1731801357235,4.6315,215.91,215.84,13.61522559]
[1731801358428,17.8852,215.96,215.86,8.98222559]
[1731801358429,4.6307,215.95,215.86,8.98222559]
[1731801358931,4.6307,215.95,215.88,8.98222559]
[1731801360549,4.6307,215.95,215.89,4.6319]
[1731801360744,4.6307,215.95,215.88,8.98222559]
[1731801361049,8.98222559,215.94,215.88,4.6321]
[1731801361349,8.98222559,215.94,215.86,8.98222559]
[1731801362139,4.6311,215.93,215.86,8.98222559]
[1731801362571,4.6311,215.93,215.87,4.6324]
[1731801362955,8.98222559,215.96,215.9,8.98222559]
[1731801363326,4.6302,215.97,215.9,8.98222559]
[1731801363831,4.6299,215.99,215.92,8.98222559]
[1731801364248,8.98222559,216.01,215.94,8.98222559]
[1731801364855,8.98222559,216.0,215.92,8.98222559]
[1731801365055,8.98222559,215.99,215.92,8.98222559]
[1731801366127,4.6298,215.99,215.92,8.98222559]
[1731801366442,13.61202559,215.99,215.92,8.98222559]
[1731801366631,8.98222559,215.98,215.9,8.98222559]
[1731801366832,8.98222559,215.96,215.88,13.61442559]
[1731801367845,13.61282559,215.96,215.88,13.61442559]
[1731801368352,4.6296,216.0,215.89,8.98222559]
[1731801368550,13.61182559,216.0,215.92,8.98222559]
[1731801369036,8.98222559,215.99,215.91,8.98222559]
[1731801369639,13.61212559,215.99,215.92,13.61352559]
[1731801370845,8.98222559,215.97,215.88,13.61412559]
[1731801371853,4.6304,215.96,215.88,13.61412559]
[1731801374849,4.6304,215.96,215.79,34.55092073]
[1731801374850,8.98222559,215.93,215.83,24.6332]
[1731801375043,15.8914,215.95,215.83,24.6332]
[1731801375044,8.98222559,215.91,215.83,13.61542559]
[1731801376451,8.98222559,215.91,215.84,4.633]
[1731801376765,4.6315,215.92,215.85,8.98222559]
[1731801378242,4.6315,215.92,215.85,13.61502559]
[1731801379548,4.6315,215.92,215.85,8.98222559]
[1731801380870,4.6315,215.92,215.85,13.61502559]
[1731801382573,4.6315,215.92,215.85,8.98222559]
[1731801382757,8.98222559,215.91,215.84,4.6329]
[1731801383556,8.98222559,215.91,215.84,23.776884]
[1731801384552,4.6317,215.9,215.84,23.776884]
[1731801393971,4.6317,215.9,215.84,28.409884]
[1731801395177,4.6317,215.9,215.84,23.776884]
[1731801396580,4.6317,215.9,215.84,28.409884]
[1731801400187,4.6317,215.9,215.8,4.6339]
[1731801400391,8.98222559,215.87,215.78,13.61642559]
[1731801400684,8.98222559,215.85,215.78,13.61642559]
[1731801401581,4.633,215.84,215.79,20.0]
[1731801402263,4.633,215.84,215.78,4.6342]
[1731801402486,4.633,215.84,215.77,43.776884]
[1731801403857,4.633,215.84,215.78,4.6343]
[1731801405272,4.633,215.84,215.77,20.0]
[1731801405480,4.633,215.84,215.78,20.0]
[1731801406476,8.98222559,215.85,215.78,20.0]
[1731801407058,16.4537,215.87,215.8,8.98222559]
[1731801407267,16.4537,215.87,215.81,28.410484]
[1731801407462,25.43592559,215.87,215.81,28.410484]
[1731801407682,8.98222559,215.85,215.74,20.0]
[1731801407882,8.98222559,215.83,215.77,20.0]
[1731801408591,8.98222559,215.84,215.78,20.0]
[1731801408882,13.61542559,215.84,215.78,20.0]
[1731801410264,8.98222559,215.83,215.75,23.776884]
[1731801410469,8.98222559,215.82,215.69,11.61360139]
[1731801410783,8.98222559,215.78,215.7,13.61822559]
[1731801411183,16.0459,215.8,215.7,13.61822559]
[1731801411184,8.98222559,215.76,215.7,4.636]
[1731801412069,8.98222559,215.78,215.7,13.61822559]
[1731801412276,8.98222559,215.78,215.7,8.98222559]
[1731801412463,13.61662559,215.78,215.7,8.98222559]
[1731801417188,20.6799,215.8,215.72,8.98222559]
[1731801417383,29.66212559,215.8,215.72,8.98222559]
[1731801417583,29.66212559,215.8,215.71,43.776884]
[1731801417794,8.98222559,215.78,215.71,43.776884]
[1731801418795,8.98222559,215.78,215.72,4.6356]
[1731801420479,13.61652559,215.78,215.72,4.6356]
[1731801424490,13.61652559,215.78,215.67,20.0]
[1731801424681,13.61652559,215.78,215.7,23.776884]
[1731801426411,13.61652559,215.78,215.7,4.636]
[1731801426717,13.61652559,215.78,215.71,23.776884]
[1731801427714,13.61652559,215.78,215.72,4.6356]
[1731801427884,13.61652559,215.78,215.72,4.1356]
[1731801428600,16.0459,215.8,215.73,23.776884]
[1731801428789,6.1848,215.83,215.73,23.776884]
[1731801428790,8.98222559,215.81,215.74,8.98222559]
[1731801430007,13.61592559,215.81,215.75,4.6349]
[1731801430401,8.98222559,215.81,215.75,4.6349]
[1731801431682,13.61552559,215.83,215.76,23.776884]
[1731801431880,4.633,215.84,215.76,23.776884]
[1731801432096,8.98222559,215.83,215.76,23.776884]
[1731801432310,4.633,215.84,215.76,23.776884]
[1731801432489,8.98222559,215.83,215.76,23.776884]
[1731801432803,8.98222559,215.82,215.76,4.6347]
[1731801433016,8.98222559,215.79,215.71,33.61802559]
[1731801433306,8.98222559,215.79,215.71,13.61802559]
[1731801434099,8.98222559,215.79,215.71,8.98222559]